[Event "Early-Titled-Tuesday-Blitz-April-16-2024"]
[Site "Chess.com"]
[Date "2024.04.16"]
[Round "4"]
[White "Caradhrast"]
[Black "ragnaroek66"]
[Result "1-0"]
[WhiteElo "2664"]
[BlackElo "2516"]
[TimeControl "180+1"]
[EndTime "8:40:45 PDT"]
[Termination "Caradhrast won by resignation"]

1. e4 {[%clk 0:02:59.5]} 1... c6 {[%clk 0:03:00.3]} 2. Nc3 {[%clk 0:02:59.4]}
2... d5 {[%clk 0:03:01.2]} 3. Nf3 {[%clk 0:03:00.1]} 3... Bg4 {[%clk 0:03:00.9]}
4. h3 {[%clk 0:03:00.6]} 4... Bxf3 {[%clk 0:03:01.5]} 5. Qxf3 {[%clk 0:03:01.5]}
5... e6 {[%clk 0:03:02.1]} 6. d4 {[%clk 0:03:02]} 6... dxe4 {[%clk 0:03:01.6]}
7. Nxe4 {[%clk 0:03:02.9]} 7... Qxd4 {[%clk 0:02:33.7]} 8. Bd3 {[%clk
0:03:03.2]} 8... Nd7 {[%clk 0:02:31.5]} 9. c3 {[%clk 0:03:03.1]} 9... Qd5 {[%clk
0:02:30.9]} 10. Bf4 {[%clk 0:03:02.3]} 10... Ne5 {[%clk 0:02:25]} 11. Bxe5
{[%clk 0:03:01.9]} 11... Qxe5 {[%clk 0:02:25.9]} 12. O-O-O {[%clk 0:03:01.5]}
12... Nf6 {[%clk 0:02:19.9]} 13. Nxf6+ {[%clk 0:03:01.1]} 13... Qxf6 {[%clk
0:02:04.3]} 14. Qg3 {[%clk 0:02:59.4]} 14... Bc5 {[%clk 0:02:00]} 15. f3 {[%clk
0:02:08.9]} 15... Be3+ {[%clk 0:01:52.5]} 16. Kb1 {[%clk 0:02:08.4]} 16... O-O
{[%clk 0:01:42]} 17. Bc2 {[%clk 0:02:04.2]} 17... Qf4 {[%clk 0:01:02.4]} 18.
Qxf4 {[%clk 0:01:58.1]} 18... Bxf4 {[%clk 0:01:03.3]} 19. Rd7 {[%clk 0:01:58.8]}
19... b6 {[%clk 0:01:03.2]} 20. Rhd1 {[%clk 0:01:58.8]} 20... Rfc8 {[%clk
0:00:56.2]} 21. Be4 {[%clk 0:01:57.7]} 21... g5 {[%clk 0:00:50.8]} 22. g4 {[%clk
0:01:44.8]} 22... Rc7 {[%clk 0:00:41.8]} 23. Rxc7 {[%clk 0:01:41.7]} 23... Bxc7
{[%clk 0:00:42.7]} 24. Rd7 {[%clk 0:01:42]} 24... Be5 {[%clk 0:00:35.9]} 25.
Bxc6 {[%clk 0:01:41.7]} 25... Rc8 {[%clk 0:00:36.2]} 26. Be4 {[%clk 0:01:41]}
26... Rc7 {[%clk 0:00:36.2]} 27. Rd8+ {[%clk 0:01:38.3]} 27... Kg7 {[%clk
0:00:35.6]} 28. Kc2 {[%clk 0:01:38.6]} 28... h6 {[%clk 0:00:30]} 29. Kd3 {[%clk
0:01:38.1]} 29... a5 {[%clk 0:00:27.3]} 30. a4 {[%clk 0:01:33.6]} 30... Kf6
{[%clk 0:00:21.1]} 31. Kc2 {[%clk 0:01:30.7]} 31... Ke7 {[%clk 0:00:20.2]} 32.
Ra8 {[%clk 0:01:28.3]} 32... Kd6 {[%clk 0:00:17.9]} 33. Ra6 {[%clk 0:01:24]}
33... Kc5 {[%clk 0:00:17.3]} 34. Ra8 {[%clk 0:01:23.2]} 34... Rd7 {[%clk
0:00:13.8]} 35. Rc8+ {[%clk 0:01:22.9]} 35... Rc7 {[%clk 0:00:14.2]} 36. Rd8
{[%clk 0:01:20.9]} 36... Re7 {[%clk 0:00:13.5]} 37. b3 {[%clk 0:01:16.5]} 37...
b5 {[%clk 0:00:13.5]} 38. Ra8 {[%clk 0:01:05.4]} 38... Bc7 {[%clk 0:00:11.4]}
39. axb5 {[%clk 0:01:04.1]} 39... Kxb5 {[%clk 0:00:12.3]} 40. Ra7 {[%clk
0:01:02.9]} 40... Rd7 {[%clk 0:00:11.3]} 41. Rb7+ {[%clk 0:01:01.4]} 41... Kc5
{[%clk 0:00:10.8]} 42. Bd3 {[%clk 0:00:55.9]} 42... Kd6 {[%clk 0:00:10]} 43. Bb5
{[%clk 0:00:53.5]} 43... Re7 {[%clk 0:00:10.3]} 44. Ra7 {[%clk 0:00:53]} 44...
f5 {[%clk 0:00:10]} 45. Ra6+ {[%clk 0:00:51.6]} 45... Ke5 {[%clk 0:00:09.9]} 46.
gxf5 {[%clk 0:00:51.1]} 46... Kxf5 {[%clk 0:00:09.8]} 47. Bc4 {[%clk 0:00:50.2]}
47... Kf4 {[%clk 0:00:09.5]} 48. Bxe6 {[%clk 0:00:49.2]} 48... Kxf3 {[%clk
0:00:08.9]} 49. Bg4+ {[%clk 0:00:49.5]} 49... Kf4 {[%clk 0:00:08.8]} 50. Rxh6
{[%clk 0:00:49.7]} 50... Re3 {[%clk 0:00:07.6]} 51. Rc6 {[%clk 0:00:48.2]} 51...
Be5 {[%clk 0:00:07.4]} 52. Rc5 {[%clk 0:00:46.1]} 52... Re2+ {[%clk 0:00:06.3]}
53. Kd3 {[%clk 0:00:46.3]} 53... Re3+ {[%clk 0:00:06.9]} 54. Kd2 {[%clk
0:00:46.5]} 54... Re4 {[%clk 0:00:04.1]} 55. Rxa5 {[%clk 0:00:43.7]} 55... Kg3
{[%clk 0:00:04.3]} 56. Ra4 {[%clk 0:00:41.5]} 56... Bf4+ {[%clk 0:00:03.8]} 57.
Kd3 {[%clk 0:00:40.1]} 57... Re8 {[%clk 0:00:03.5]} 58. Rd4 {[%clk 0:00:37.8]}
58... Re3+ {[%clk 0:00:02.3]} 59. Kc4 {[%clk 0:00:37.9]} 59... Re1 {[%clk
0:00:01.8]} 60. b4 {[%clk 0:00:38]} 60... Be5 {[%clk 0:00:01.6]} 61. Rd5 {[%clk
0:00:37.3]} 61... Re3 {[%clk 0:00:02.5]} 62. Rd3 {[%clk 0:00:37.5]} 62... Rxd3
{[%clk 0:00:02.3]} 63. Kxd3 {[%clk 0:00:38.4]} 63... Kf4 {[%clk 0:00:02.5]} 64.
c4 {[%clk 0:00:38.5]} 64... Bd6 {[%clk 0:00:02.8]} 65. c5 {[%clk 0:00:38.8]}
65... Be7 {[%clk 0:00:02.7]} 66. Kd4 {[%clk 0:00:39.3]} 1-0

[Event "Early-Titled-Tuesday-Blitz-April-16-2024"]
[Site "Chess.com"]
[Date "2024.04.16"]
[Round "4"]
[White "bobo_panda"]
[Black "tomesao"]
[Result "1-0"]
[WhiteElo "2360"]
[BlackElo "2526"]
[TimeControl "180+1"]
[EndTime "8:40:46 PDT"]
[Termination "bobo_panda won by resignation"]

1. e4 {[%clk 0:03:00.9]} 1... c6 {[%clk 0:02:59.2]} 2. d4 {[%clk 0:03:00.4]}
2... d5 {[%clk 0:03:00.1]} 3. e5 {[%clk 0:03:00.9]} 3... Bf5 {[%clk 0:02:59.7]}
4. h4 {[%clk 0:03:01.1]} 4... h5 {[%clk 0:02:58.7]} 5. Bd3 {[%clk 0:03:00.9]}
5... Bxd3 {[%clk 0:02:58.7]} 6. Qxd3 {[%clk 0:03:01.8]} 6... Qa5+ {[%clk
0:02:58.4]} 7. Nd2 {[%clk 0:03:01.2]} 7... e6 {[%clk 0:02:55.8]} 8. Ne2 {[%clk
0:03:00.6]} 8... Ne7 {[%clk 0:02:54]} 9. Ng3 {[%clk 0:02:58]} 9... c5 {[%clk
0:02:51.5]} 10. dxc5 {[%clk 0:02:52.9]} 10... Qxc5 {[%clk 0:02:49.6]} 11. Nb3
{[%clk 0:02:52]} 11... Qc7 {[%clk 0:02:47]} 12. f4 {[%clk 0:02:51.2]} 12... Nbc6
{[%clk 0:02:43]} 13. c3 {[%clk 0:02:51.3]} 13... g6 {[%clk 0:02:38.5]} 14. Be3
{[%clk 0:02:50.5]} 14... Nf5 {[%clk 0:02:38.2]} 15. Nxf5 {[%clk 0:02:49.1]}
15... gxf5 {[%clk 0:02:39.1]} 16. Nd4 {[%clk 0:02:38.5]} 16... Rg8 {[%clk
0:02:36.9]} 17. Kf2 {[%clk 0:02:37.9]} 17... Bc5 {[%clk 0:02:24.8]} 18. Nb5
{[%clk 0:02:32.3]} 18... Qb6 {[%clk 0:02:12.6]} 19. Nd6+ {[%clk 0:02:11.9]}
19... Ke7 {[%clk 0:02:10.1]} 20. Bxc5 {[%clk 0:02:04.1]} 20... Qxc5+ {[%clk
0:02:08.5]} 21. Kf3 {[%clk 0:02:04.6]} 21... d4 {[%clk 0:01:53.4]} 22. Qb5
{[%clk 0:02:03]} 22... Qxb5 {[%clk 0:01:43.4]} 23. Nxb5 {[%clk 0:02:03.5]} 23...
a6 {[%clk 0:01:35.6]} 24. Nxd4 {[%clk 0:02:00.2]} 24... Nxd4+ {[%clk 0:01:35.3]}
25. cxd4 {[%clk 0:02:00.4]} 25... Rgd8 {[%clk 0:01:36.1]} 26. Ke3 {[%clk
0:01:55.6]} 26... Rg8 {[%clk 0:01:32.1]} 27. Rac1 {[%clk 0:01:27]} 27... Kd7
{[%clk 0:01:17.9]} 28. Kf3 {[%clk 0:01:23.8]} 28... Rac8 {[%clk 0:01:11.2]} 29.
Rc3 {[%clk 0:01:11.5]} 29... Rxc3+ {[%clk 0:01:10.2]} 30. bxc3 {[%clk
0:01:12.4]} 30... Rc8 {[%clk 0:01:10.3]} 31. Rc1 {[%clk 0:01:12.1]} 31... Rc4
{[%clk 0:01:10.5]} 32. Ke3 {[%clk 0:01:11.9]} 32... Kc6 {[%clk 0:01:10.4]} 33.
Kd3 {[%clk 0:01:11.9]} 33... b5 {[%clk 0:01:10.8]} 34. Rb1 {[%clk 0:01:08.7]}
34... Ra4 {[%clk 0:01:09]} 35. Rb2 {[%clk 0:01:05.8]} 35... Kd5 {[%clk
0:01:08.9]} 36. Rf2 {[%clk 0:00:56.8]} 36... Ra3 {[%clk 0:01:07.1]} 37. Rb2
{[%clk 0:00:56.6]} 37... Ra4 {[%clk 0:01:03.7]} 38. Rf2 {[%clk 0:00:55.2]} 38...
Rc4 {[%clk 0:01:02.2]} 39. Rc2 {[%clk 0:00:53.3]} 39... b4 {[%clk 0:00:55.5]}
40. g3 {[%clk 0:00:35.6]} 40... a5 {[%clk 0:00:45]} 41. cxb4 {[%clk 0:00:31.5]}
41... Rxd4+ {[%clk 0:00:43.1]} 42. Ke3 {[%clk 0:00:32]} 42... Re4+ {[%clk
0:00:42.8]} 43. Kf3 {[%clk 0:00:31.6]} 43... Rxb4 {[%clk 0:00:42.7]} 44. Rc7
{[%clk 0:00:31.6]} 44... Ra4 {[%clk 0:00:42.3]} 45. Rxf7 {[%clk 0:00:31.3]}
45... Ra3+ {[%clk 0:00:42.6]} 46. Kg2 {[%clk 0:00:29.5]} 46... Rxa2+ {[%clk
0:00:42.4]} 47. Kh3 {[%clk 0:00:30]} 47... a4 {[%clk 0:00:42.3]} 48. Ra7 {[%clk
0:00:20.4]} 48... a3 {[%clk 0:00:40.8]} 49. Ra4 {[%clk 0:00:19.9]} 49... Ra1
{[%clk 0:00:38.3]} 50. Kh2 {[%clk 0:00:19.1]} 50... Kc5 {[%clk 0:00:35.7]} 51.
Kg2 {[%clk 0:00:19.1]} 51... Kb5 {[%clk 0:00:35.8]} 52. Ra8 {[%clk 0:00:18.8]}
52... Kc4 {[%clk 0:00:34.7]} 53. Ra6 {[%clk 0:00:19]} 53... Kb3 {[%clk 0:00:31]}
54. Rxe6 {[%clk 0:00:18.7]} 54... a2 {[%clk 0:00:31.2]} 55. Rb6+ {[%clk
0:00:18.3]} 55... Kc4 {[%clk 0:00:31.3]} 56. Ra6 {[%clk 0:00:18.3]} 56... Kb5
{[%clk 0:00:30.7]} 57. Ra8 {[%clk 0:00:18.5]} 57... Kb4 {[%clk 0:00:29.8]} 58.
e6 {[%clk 0:00:18.7]} 58... Re1 {[%clk 0:00:29.6]} 59. Rxa2 {[%clk 0:00:18.8]}
59... Rxe6 {[%clk 0:00:29.7]} 60. Rc2 {[%clk 0:00:19.4]} 60... Kb5 {[%clk
0:00:28.8]} 61. Kf3 {[%clk 0:00:18.8]} 61... Ra6 {[%clk 0:00:27]} 62. Rc8 {[%clk
0:00:18.9]} 62... Ra3+ {[%clk 0:00:26.7]} 63. Kg2 {[%clk 0:00:19.3]} 63... Ra6
{[%clk 0:00:22.7]} 64. Rh8 {[%clk 0:00:17.8]} 64... Kc4 {[%clk 0:00:22.5]} 65.
Rxh5 {[%clk 0:00:17.7]} 65... Rf6 {[%clk 0:00:18.6]} 66. Kf3 {[%clk 0:00:17.8]}
66... Kd4 {[%clk 0:00:18.3]} 67. Rg5 {[%clk 0:00:18.2]} 67... Kd5 {[%clk
0:00:17.9]} 68. h5 {[%clk 0:00:18.5]} 68... Ke6 {[%clk 0:00:17.9]} 69. Rg6
{[%clk 0:00:10.5]} 69... Rxg6 {[%clk 0:00:18.1]} 70. hxg6 {[%clk 0:00:11.4]}
70... Kf6 {[%clk 0:00:19]} 71. Ke3 {[%clk 0:00:11.9]} 71... Kxg6 {[%clk
0:00:19.5]} 72. Kd4 {[%clk 0:00:12.5]} 72... Kh5 {[%clk 0:00:20.1]} 73. Ke5
{[%clk 0:00:12.7]} 73... Kg4 {[%clk 0:00:21]} 74. Kf6 {[%clk 0:00:13.3]} 74...
Kxg3 {[%clk 0:00:21.3]} 75. Kxf5 {[%clk 0:00:13.7]} 1-0

[Event "Early-Titled-Tuesday-Blitz-April-16-2024"]
[Site "Chess.com"]
[Date "2024.04.16"]
[Round "4"]
[White "klercaku"]
[Black "SaiAgni_98"]
[Result "1/2-1/2"]
[WhiteElo "2191"]
[BlackElo "2476"]
[TimeControl "180+1"]
[EndTime "8:40:46 PDT"]
[Termination "Game drawn by repetition"]

1. e4 {[%clk 0:02:59.4]} 1... c6 {[%clk 0:03:00.3]} 2. d4 {[%clk 0:02:58.2]}
2... d5 {[%clk 0:03:00.5]} 3. exd5 {[%clk 0:02:59.1]} 3... cxd5 {[%clk
0:02:59.8]} 4. Bd3 {[%clk 0:02:58.8]} 4... Nc6 {[%clk 0:02:59.5]} 5. c3 {[%clk
0:02:59]} 5... Nf6 {[%clk 0:02:59.1]} 6. h3 {[%clk 0:02:59.4]} 6... g6 {[%clk
0:02:58.5]} 7. Ne2 {[%clk 0:03:00]} 7... Bg7 {[%clk 0:02:56.3]} 8. O-O {[%clk
0:03:00.2]} 8... O-O {[%clk 0:02:53.1]} 9. Bf4 {[%clk 0:02:57.8]} 9... Bf5
{[%clk 0:02:40.3]} 10. Bxf5 {[%clk 0:02:56.9]} 10... gxf5 {[%clk 0:02:40.9]} 11.
Ng3 {[%clk 0:02:56.7]} 11... e6 {[%clk 0:02:40.7]} 12. Nd2 {[%clk 0:02:47]}
12... Kh8 {[%clk 0:02:22.6]} 13. Nf3 {[%clk 0:02:38]} 13... Ne4 {[%clk
0:02:18.7]} 14. Nh5 {[%clk 0:01:25.5]} 14... Rg8 {[%clk 0:02:16.1]} 15. Nd2
{[%clk 0:01:17]} 15... Qh4 {[%clk 0:02:05.7]} 16. Nxe4 {[%clk 0:01:07.5]} 16...
dxe4 {[%clk 0:01:56.8]} 17. Bg3 {[%clk 0:00:57.8]} 17... Qg5 {[%clk 0:01:49.3]}
18. Bf4 {[%clk 0:00:52]} 18... Qg6 {[%clk 0:01:47.6]} 19. Ng3 {[%clk 0:00:47.8]}
19... Bh6 {[%clk 0:01:43.2]} 20. Qd2 {[%clk 0:00:44.4]} 20... Bxf4 {[%clk
0:01:37]} 21. Qxf4 {[%clk 0:00:44.3]} 21... Qg5 {[%clk 0:01:32.1]} 22. Qxg5
{[%clk 0:00:32.5]} 22... Rxg5 {[%clk 0:01:33]} 23. Ne2 {[%clk 0:00:23]} 23... f6
{[%clk 0:01:00]} 24. Nf4 {[%clk 0:00:19.2]} 24... e5 {[%clk 0:00:59.8]} 25. Ne6
{[%clk 0:00:17.8]} 25... Rg6 {[%clk 0:00:56.9]} 26. d5 {[%clk 0:00:17.9]} 26...
Nd8 {[%clk 0:00:46.9]} 27. Nc5 {[%clk 0:00:09.8]} 27... b6 {[%clk 0:00:41.6]}
28. Nd7 {[%clk 0:00:08.4]} 28... Rc8 {[%clk 0:00:35]} 29. Rad1 {[%clk
0:00:08.2]} 29... Rc7 {[%clk 0:00:34.7]} 30. Nf8 {[%clk 0:00:08.1]} 30... Rg8
{[%clk 0:00:33.3]} 31. Ne6 {[%clk 0:00:04.8]} 31... Rd7 {[%clk 0:00:17.7]} 32.
Nxd8 {[%clk 0:00:03.1]} 32... Rgxd8 {[%clk 0:00:18.6]} 33. c4 {[%clk 0:00:04]}
33... Kg7 {[%clk 0:00:17.7]} 34. b3 {[%clk 0:00:04.2]} 34... Kf7 {[%clk
0:00:17.8]} 35. f3 {[%clk 0:00:04.2]} 35... exf3 {[%clk 0:00:17.4]} 36. Rxf3
{[%clk 0:00:03.8]} 36... f4 {[%clk 0:00:18.1]} 37. Kf2 {[%clk 0:00:03]} 37...
Rg8 {[%clk 0:00:17.1]} 38. g3 {[%clk 0:00:02.4]} 38... fxg3+ {[%clk 0:00:17.6]}
39. Rxg3 {[%clk 0:00:03.3]} 39... Rxg3 {[%clk 0:00:18.3]} 40. Kxg3 {[%clk
0:00:04.2]} 40... f5 {[%clk 0:00:18.2]} 41. Rf1 {[%clk 0:00:03.7]} 41... Kg6
{[%clk 0:00:17.9]} 42. Kf3 {[%clk 0:00:03.7]} 42... Kg5 {[%clk 0:00:17.2]} 43.
Rg1+ {[%clk 0:00:03.8]} 43... Kh4 {[%clk 0:00:17]} 44. Rg8 {[%clk 0:00:02]}
44... a5 {[%clk 0:00:15.2]} 45. Rf8 {[%clk 0:00:01.9]} 45... Kg5 {[%clk
0:00:13.6]} 46. Re8 {[%clk 0:00:02.1]} 46... Kf6 {[%clk 0:00:11.5]} 47. Ke3
{[%clk 0:00:02.5]} 47... Rd6 {[%clk 0:00:09.6]} 48. Rh8 {[%clk 0:00:02.9]} 48...
Kg7 {[%clk 0:00:08.7]} 49. Re8 {[%clk 0:00:03.3]} 49... Kf6 {[%clk 0:00:08.5]}
50. Rf8+ {[%clk 0:00:03.9]} 50... Kg6 {[%clk 0:00:07.9]} 51. Re8 {[%clk
0:00:04.5]} 51... Kf7 {[%clk 0:00:04.5]} 52. Rh8 {[%clk 0:00:04.7]} 52... Kg7
{[%clk 0:00:04.9]} 53. Re8 {[%clk 0:00:04.8]} 53... Kf6 {[%clk 0:00:05.2]}
1/2-1/2

[Event "Early-Titled-Tuesday-Blitz-April-16-2024"]
[Site "Chess.com"]
[Date "2024.04.16"]
[Round "4"]
[White "sokidze"]
[Black "Elnaz_Kaliakhmet"]
[Result "1-0"]
[WhiteElo "2815"]
[BlackElo "2569"]
[TimeControl "180+1"]
[EndTime "8:40:47 PDT"]
[Termination "sokidze won by resignation"]

1. d4 {[%clk 0:03:00.9]} 1... Nf6 {[%clk 0:02:57.9]} 2. c4 {[%clk 0:03:00.9]}
2... e6 {[%clk 0:02:57.9]} 3. Nf3 {[%clk 0:03:01.2]} 3... Bb4+ {[%clk
0:02:53.4]} 4. Bd2 {[%clk 0:03:00.3]} 4... a5 {[%clk 0:02:50]} 5. g3 {[%clk
0:02:59.7]} 5... d6 {[%clk 0:02:49.6]} 6. Bg2 {[%clk 0:02:58.9]} 6... Nbd7
{[%clk 0:02:50.2]} 7. O-O {[%clk 0:02:58.6]} 7... e5 {[%clk 0:02:50.3]} 8. a3
{[%clk 0:02:42.6]} 8... Bxd2 {[%clk 0:02:49.3]} 9. Qxd2 {[%clk 0:02:43.1]} 9...
O-O {[%clk 0:02:47.6]} 10. Nc3 {[%clk 0:02:43.2]} 10... c6 {[%clk 0:02:42.1]}
11. Rad1 {[%clk 0:02:34.1]} 11... e4 {[%clk 0:02:37.3]} 12. Nh4 {[%clk
0:02:16.5]} 12... d5 {[%clk 0:02:36.8]} 13. Nf5 {[%clk 0:02:09.8]} 13... Nb6
{[%clk 0:02:35.3]} 14. Ne3 {[%clk 0:02:09.8]} 14... Be6 {[%clk 0:02:31.1]} 15.
cxd5 {[%clk 0:02:05.4]} 15... cxd5 {[%clk 0:02:30.6]} 16. Rc1 {[%clk 0:02:05]}
16... a4 {[%clk 0:02:28]} 17. Nb5 {[%clk 0:01:57.6]} 17... Rc8 {[%clk
0:02:23.9]} 18. Qb4 {[%clk 0:01:54.4]} 18... Nfd7 {[%clk 0:02:18.9]} 19. Nd6
{[%clk 0:01:49.5]} 19... Rxc1 {[%clk 0:02:18.4]} 20. Rxc1 {[%clk 0:01:49.5]}
20... Qb8 {[%clk 0:02:18.4]} 21. h3 {[%clk 0:01:38.4]} 21... f5 {[%clk
0:02:16.7]} 22. Nf1 {[%clk 0:01:14.7]} 22... f4 {[%clk 0:02:09.9]} 23. gxf4
{[%clk 0:01:14.7]} 23... Rxf4 {[%clk 0:02:10.8]} 24. e3 {[%clk 0:01:07.7]} 24...
Rf6 {[%clk 0:02:06.9]} 25. Ng3 {[%clk 0:00:39.8]} 25... Bf7 {[%clk 0:01:20.3]}
26. Nxf7 {[%clk 0:00:33.1]} 26... Rxf7 {[%clk 0:01:18.7]} 27. Bf1 {[%clk
0:00:31.5]} 27... g6 {[%clk 0:01:07.5]} 28. Bb5 {[%clk 0:00:26.7]} 28... h5
{[%clk 0:01:06.1]} 29. h4 {[%clk 0:00:20.3]} 29... Qd8 {[%clk 0:01:03.2]} 30.
Qd6 {[%clk 0:00:14.5]} 30... Qxh4 {[%clk 0:00:51.3]} 31. Bxd7 {[%clk 0:00:10.5]}
31... Nxd7 {[%clk 0:00:51.7]} 32. Qxd5 {[%clk 0:00:07.9]} 32... Nf6 {[%clk
0:00:16.6]} 33. Qe6 {[%clk 0:00:03.7]} 33... Qg4 {[%clk 0:00:12.7]} 34. Qxg4
{[%clk 0:00:03.4]} 34... Nxg4 {[%clk 0:00:12.6]} 35. Nxe4 {[%clk 0:00:03.6]}
35... Re7 {[%clk 0:00:12.9]} 36. Ng5 {[%clk 0:00:03.1]} 36... Kg7 {[%clk
0:00:12.3]} 37. Rc5 {[%clk 0:00:02.5]} 37... Kh6 {[%clk 0:00:11.5]} 38. Kg2
{[%clk 0:00:02.8]} 38... Nf6 {[%clk 0:00:10.2]} 39. Rb5 {[%clk 0:00:01.6]} 39...
b6 {[%clk 0:00:10]} 40. Re5 {[%clk 0:00:01.6]} 40... Rxe5 {[%clk 0:00:08.6]} 41.
Nf7+ {[%clk 0:00:02]} 41... Kg7 {[%clk 0:00:07.9]} 42. Nxe5 {[%clk 0:00:02.9]}
42... Nd5 {[%clk 0:00:08]} 43. Nc4 {[%clk 0:00:02.9]} 43... Kf6 {[%clk
0:00:07.1]} 44. Kf3 {[%clk 0:00:02]} 44... g5 {[%clk 0:00:06.9]} 45. e4 {[%clk
0:00:02.3]} 45... g4+ {[%clk 0:00:07.1]} 46. Kg3 {[%clk 0:00:02.3]} 46... Nc7
{[%clk 0:00:04.6]} 47. Nxb6 {[%clk 0:00:02.5]} 47... Nb5 {[%clk 0:00:04]} 48. d5
{[%clk 0:00:02.2]} 48... Ke5 {[%clk 0:00:04]} 49. Nc4+ {[%clk 0:00:01.9]} 49...
Kd4 {[%clk 0:00:03.5]} 50. d6 {[%clk 0:00:02.4]} 50... Na7 {[%clk 0:00:02.1]}
51. Na5 {[%clk 0:00:02.2]} 51... Ke5 {[%clk 0:00:01.2]} 52. d7 {[%clk
0:00:02.7]} 52... Nc6 {[%clk 0:00:01.4]} 53. Nxc6+ {[%clk 0:00:02.5]} 53... Kd6
{[%clk 0:00:02.3]} 54. d8=Q+ {[%clk 0:00:03.1]} 54... Kxc6 {[%clk 0:00:03.2]}
55. Qd5+ {[%clk 0:00:03.8]} 55... Kb6 {[%clk 0:00:03.4]} 56. Qxh5 {[%clk
0:00:04.5]} 56... Kc7 {[%clk 0:00:04.3]} 57. Kxg4 {[%clk 0:00:05.1]} 57... Kb6
{[%clk 0:00:05.2]} 58. Qd5 {[%clk 0:00:05.4]} 58... Kc7 {[%clk 0:00:05]} 59. f4
{[%clk 0:00:06.1]} 59... Kb6 {[%clk 0:00:05.9]} 60. f5 {[%clk 0:00:06.8]} 1-0

[Event "Early-Titled-Tuesday-Blitz-April-16-2024"]
[Site "Chess.com"]
[Date "2024.04.16"]
[Round "4"]
[White "esrosenberg"]
[Black "PawnEatingZombie"]
[Result "0-1"]
[WhiteElo "2379"]
[BlackElo "2250"]
[TimeControl "180+1"]
[EndTime "8:40:49 PDT"]
[Termination "PawnEatingZombie won by checkmate"]

1. d4 {[%clk 0:03:00.9]} 1... Nf6 {[%clk 0:02:59.7]} 2. Nf3 {[%clk 0:03:01.4]}
2... g6 {[%clk 0:02:59.8]} 3. Nc3 {[%clk 0:03:01.1]} 3... d5 {[%clk 0:02:54.1]}
4. Bf4 {[%clk 0:03:01.5]} 4... Bg7 {[%clk 0:02:52.1]} 5. Nb5 {[%clk 0:03:02]}
5... Na6 {[%clk 0:02:51.5]} 6. e3 {[%clk 0:03:02.6]} 6... O-O {[%clk 0:02:50.5]}
7. h3 {[%clk 0:03:02.4]} 7... c6 {[%clk 0:02:46.2]} 8. Nc3 {[%clk 0:03:02.9]}
8... Nc7 {[%clk 0:02:30.2]} 9. Be2 {[%clk 0:02:58.8]} 9... Nce8 {[%clk
0:02:24.8]} 10. O-O {[%clk 0:02:54.5]} 10... Nd6 {[%clk 0:02:25.3]} 11. a4
{[%clk 0:02:49.9]} 11... b6 {[%clk 0:02:25.2]} 12. a5 {[%clk 0:02:48.8]} 12...
b5 {[%clk 0:02:22.8]} 13. Ne5 {[%clk 0:02:45.4]} 13... Qe8 {[%clk 0:02:08.4]}
14. a6 {[%clk 0:02:43.2]} 14... Nc4 {[%clk 0:01:56.7]} 15. b3 {[%clk 0:02:41.2]}
15... Nxe5 {[%clk 0:01:56.1]} 16. Bxe5 {[%clk 0:02:41.6]} 16... Nd7 {[%clk
0:01:54.3]} 17. Bxg7 {[%clk 0:02:41.3]} 17... Kxg7 {[%clk 0:01:55.2]} 18. e4
{[%clk 0:02:40.4]} 18... Nf6 {[%clk 0:01:44.6]} 19. e5 {[%clk 0:02:36.1]} 19...
Nd7 {[%clk 0:01:44.5]} 20. f4 {[%clk 0:02:28.6]} 20... e6 {[%clk 0:01:42.4]} 21.
g4 {[%clk 0:02:26.7]} 21... Qe7 {[%clk 0:01:39.1]} 22. Qe1 {[%clk 0:02:17.6]}
22... f6 {[%clk 0:01:32.5]} 23. Qh4 {[%clk 0:02:14.1]} 23... Rf7 {[%clk
0:01:25.5]} 24. g5 {[%clk 0:02:11.6]} 24... f5 {[%clk 0:01:12.5]} 25. Bd3 {[%clk
0:02:01.8]} 25... Nb8 {[%clk 0:01:10.6]} 26. Qh6+ {[%clk 0:01:52.6]} 26... Kg8
{[%clk 0:01:10]} 27. Ra2 {[%clk 0:01:36.6]} 27... Qf8 {[%clk 0:01:05.6]} 28.
Qxf8+ {[%clk 0:01:34.3]} 28... Kxf8 {[%clk 0:01:04.6]} 29. Rfa1 {[%clk
0:01:33.6]} 29... Nd7 {[%clk 0:00:52.4]} 30. Nd1 {[%clk 0:01:24]} 30... Ke7
{[%clk 0:00:52.6]} 31. c3 {[%clk 0:01:23.8]} 31... Kd8 {[%clk 0:00:52.6]} 32.
Ne3 {[%clk 0:01:18.7]} 32... Kc7 {[%clk 0:00:52.2]} 33. Nc2 {[%clk 0:01:19.4]}
33... Kb6 {[%clk 0:00:49]} 34. Nb4 {[%clk 0:01:19.3]} 34... c5 {[%clk
0:00:41.1]} 35. dxc5+ {[%clk 0:01:19.3]} 35... Nxc5 {[%clk 0:00:41.3]} 36. Bc2
{[%clk 0:01:18.6]} 36... Bd7 {[%clk 0:00:40]} 37. Kf2 {[%clk 0:01:18.4]} 37...
Rc8 {[%clk 0:00:36.9]} 38. Ke3 {[%clk 0:01:18.1]} 38... Be8 {[%clk 0:00:33.6]}
39. Kd4 {[%clk 0:01:17.6]} 39... Rfc7 {[%clk 0:00:33.4]} 40. h4 {[%clk
0:01:09.2]} 40... Ne4 {[%clk 0:00:30.2]} 41. Bxe4 {[%clk 0:01:08.2]} 41... dxe4
{[%clk 0:00:30.6]} 42. Rc1 {[%clk 0:01:00.7]} 42... Rd8+ {[%clk 0:00:30.7]} 43.
Ke3 {[%clk 0:01:00.2]} 43... Rcd7 {[%clk 0:00:31]} 44. c4 {[%clk 0:00:55.7]}
44... Kc5 {[%clk 0:00:19.7]} 45. Nd5 {[%clk 0:00:22.4]} 45... exd5 {[%clk
0:00:18.8]} 46. cxd5+ {[%clk 0:00:23.3]} 46... Kxd5 {[%clk 0:00:18.3]} 47. Rd2+
{[%clk 0:00:24]} 47... Ke6 {[%clk 0:00:17.6]} 48. Rc6+ {[%clk 0:00:24.7]} 48...
Ke7 {[%clk 0:00:17.8]} 49. Rdd6 {[%clk 0:00:19.7]} 49... Rxd6 {[%clk 0:00:16.2]}
50. exd6+ {[%clk 0:00:20.6]} 50... Rxd6 {[%clk 0:00:15.8]} 51. Rc7+ {[%clk
0:00:21.5]} 51... Rd7 {[%clk 0:00:15.8]} 52. Rc8 {[%clk 0:00:20.9]} 52... Bf7
{[%clk 0:00:15.1]} 53. b4 {[%clk 0:00:16.9]} 53... Bc4 {[%clk 0:00:14.9]} 54.
Rh8 {[%clk 0:00:14.9]} 54... Kd6 {[%clk 0:00:15.1]} 55. h5 {[%clk 0:00:13.3]}
55... Kc6 {[%clk 0:00:14.5]} 56. h6 {[%clk 0:00:10.6]} 56... Rd3+ {[%clk
0:00:08.7]} 57. Kf2 {[%clk 0:00:09.7]} 57... Rf3+ {[%clk 0:00:08.7]} 58. Kg2
{[%clk 0:00:08.8]} 58... Rxf4 {[%clk 0:00:09.1]} 59. Rc8+ {[%clk 0:00:08.1]}
59... Kb6 {[%clk 0:00:08.6]} 60. Rd8 {[%clk 0:00:06.2]} 60... e3 {[%clk
0:00:08.1]} 61. Rd7 {[%clk 0:00:07.1]} 61... e2 {[%clk 0:00:07.1]} 62. Re7
{[%clk 0:00:07.7]} 62... Re4 {[%clk 0:00:06.4]} 63. Rxe4 {[%clk 0:00:07.8]}
63... fxe4 {[%clk 0:00:06.3]} 64. Kf2 {[%clk 0:00:06.5]} 64... Kxa6 {[%clk
0:00:06.1]} 65. Ke1 {[%clk 0:00:07.4]} 65... Kb6 {[%clk 0:00:06.2]} 66. Kd2
{[%clk 0:00:08.3]} 66... a5 {[%clk 0:00:06.4]} 67. Ke1 {[%clk 0:00:09.2]} 67...
a4 {[%clk 0:00:06.4]} 68. Kd2 {[%clk 0:00:10.1]} 68... a3 {[%clk 0:00:06.9]} 69.
Ke1 {[%clk 0:00:11]} 69... a2 {[%clk 0:00:07.4]} 70. Kd2 {[%clk 0:00:11.8]}
70... a1=Q {[%clk 0:00:07.8]} 71. Ke3 {[%clk 0:00:11.8]} 71... e1=Q+ {[%clk
0:00:08]} 72. Kf4 {[%clk 0:00:12.6]} 72... Qf2+ {[%clk 0:00:06.6]} 73. Kxe4
{[%clk 0:00:13.5]} 73... Qae1# {[%clk 0:00:05.9]} 0-1